fUSD/lending_fUSD_20260205
["ID","MTS","AMOUNT","RATE_DAILY","PERIOD"]
[404589947,1770317444023,-1000.0,0.00019726,2]
[404589950,1770317444034,-250.0,0.00019726,2]
[404589951,1770317444043,-500.0,0.00019781,2]
[404589953,1770317444053,-506.0,0.00019807,3]
[404589955,1770317444063,-500.0,0.00019836,2]
[404589958,1770317444083,-181.68686723,0.00019851,2]
[404589959,1770317444093,-254.56,0.0001986,2]
[404589962,1770317444103,-5094.42209041,0.00019862,2]
[404589964,1770317444113,-828.22024441,0.00019862,2]
[404589965,1770317444121,-500.0,0.0001989,2]
[404589967,1770317444130,-500.0,0.00019945,2]
[404589969,1770317444139,-150.0,0.00019973,2]
[404589971,1770317444149,-500.0,0.00019973,2]
[404589973,1770317444159,-300.0,0.00019973,2]
[404589975,1770317444169,-164.53536776,0.00019973,2]
[404589977,1770317444179,-1152.0,0.00019978,2]
[404589979,1770317444188,-500.0,0.0002,2]
[404589981,1770317444198,-500.0,0.0002,2]
[404589983,1770317444207,-200.0,0.0002,2]
[404589985,1770317444216,-1000.0,0.0002,2]
[404589987,1770317444226,-500.0,0.00020001,2]
[404589989,1770317444235,-500.0,0.00020002,2]
[404589991,1770317444245,-499.9999,0.00020003,2]
[404589993,1770317444254,-1000.0,0.00020017,2]
[404589995,1770317444263,-2000.0,0.00020029,2]
[404589997,1770317444273,-217.15233878,0.00020029,2]
[404589999,1770317444282,-8233.1,0.00020053,2]
[404590001,1770317444291,-625.66128038,0.00020055,2]
[404590003,1770317444300,-152.01739561,0.00020071,2]
[404590005,1770317444309,-150.0,0.000201,7]
[404590007,1770317444319,-200.0,0.00020138,2]
[404590009,1770317444332,-2500.0,0.00020164,2]
[404590024,1770317444471,-239.79106788,0.00020164,2]
[404590026,1770317444480,-2500.0,0.00020164,2]
[404590028,1770317444490,-1680.57286649,0.00020164,2]
[404590030,1770317444500,-585.35553591,0.00020164,2]
[404590032,1770317444509,-252.99800025,0.00020164,2]
[404590034,1770317444519,-2500.0,0.00020164,2]
[404590036,1770317444528,-1000.0,0.00020274,2]
[404590038,1770317444537,-264.22979882,0.00020274,2]
[404590040,1770317444547,-500.0,0.00020329,2]
[404590042,1770317444556,-151.0,0.0002034,2]
[404590044,1770317444566,-151.0,0.0002034,2]
[404590046,1770317444578,-151.0,0.0002034,2]
[404590048,1770317444588,-151.0,0.0002034,2]
[404590050,1770317444599,-151.0,0.0002034,2]
[404590052,1770317444608,-153.70723019,0.0002034,2]
[404590054,1770317444625,-765.53506386,0.0002037,3]
[404590056,1770317444635,-174.63368133,0.00020488,2]
[404590058,1770317444645,-250.0,0.00020521,2]
[404590060,1770317444655,-523.22331426,0.00020521,2]
[404590062,1770317444664,-600.0,0.00020521,2]
[404590064,1770317444674,-154.75,0.00020548,2]
[404590066,1770317444684,-21547.78,0.00020548,2]
[404590068,1770317444695,-1000.0,0.00020548,2]
[404590070,1770317444704,-2000.0,0.00020577,2]
[404590072,1770317444714,-225.18697532,0.00020577,2]
[404590074,1770317444723,-254.56,0.00020624,2]
[404590076,1770317444732,-174.63368133,0.00020695,2]
[404590078,1770317444741,-506.0,0.00020705,4]
[404590080,1770317444751,-2439.89783247,0.00020712,2]
[404590082,1770317444761,-3128.30908747,0.00020712,2]
[404590084,1770317444771,-3000.0,0.00020712,2]
[404590086,1770317444780,-181.7,0.00020749,2]
[404590088,1770317444789,-155.22993896,0.00020798,2]
[404590090,1770317444799,-1000.0,0.00020822,2]
[404590092,1770317444808,-359.76179104,0.00020848,2]
[404590094,1770317444818,-5094.42209041,0.00020874,2]
[404590096,1770317444831,-828.22024441,0.00020874,2]
[404590098,1770317444840,-150.0,0.00020973,2]
[404590100,1770317444849,-162.15,0.00021,4]
[404590101,1770317444858,-400.0,0.00021,2]
[404590103,1770317444868,-12531.06,0.00021068,2]
[404590106,1770317444878,-350.0,0.00021068,2]
[404590107,1770317444888,-900.0,0.00021068,2]
[404590110,1770317444899,-1000.0,0.00021096,2]
[404590112,1770317444909,-180.0,0.00021104,2]
[404590114,1770317444918,-2000.0,0.00021125,2]
[404590116,1770317444927,-233.51889341,0.00021125,2]
[404590118,1770317444936,-1411.0,0.00021175,2]
[404590120,1770317444945,-3482.0,0.00021175,2]
[404590122,1770317444954,-1335.0,0.00021175,2]
[404590124,1770317444963,-616.0,0.00021175,2]
[404590126,1770317444973,-1271.0,0.00021175,2]
[404590128,1770317444982,-412.0,0.00021175,2]
[404590130,1770317444992,-6581.0,0.00021175,2]
[404590131,1770317445001,-3254.0,0.00021175,2]
[404590133,1770317445011,-500.0,0.00021242,2]
[404590136,1770317445021,-3500.0,0.0002126,2]
[404590138,1770317445031,-1446.62636525,0.00021288,2]
[404590139,1770317445040,-1446.62636525,0.0002137,2]
[404590142,1770317445050,-1000.0,0.0002137,2]
[404590143,1770317445060,-889.9,0.00021422,2]
[404590146,1770317445070,-1446.62636525,0.00021452,2]
[404590147,1770317445082,-250.0,0.00021521,2]
[404590149,1770317445092,-1446.62636525,0.00021534,2]
[404590151,1770317445102,-1312.89,0.00021543,2]
[404590153,1770317445112,-155.22993896,0.00021547,2]
[404590155,1770317445121,-506.0,0.00021604,5]
[404590157,1770317445131,-450.0,0.00021616,2]
[404590159,1770317445140,-708.355118,0.00021616,2]
[404590161,1770317445150,-1446.62636525,0.00021644,2]
[404590163,1770317445159,-1000.0,0.00021644,2]
[404590165,1770317445169,-2000.0,0.00021673,2]
[404590167,1770317445178,-242.15909246,0.00021673,2]
[404590169,1770317445188,-1446.62636525,0.00021726,2]
[404590171,1770317445197,-4000.0,0.00021808,2]
[404590173,1770317445206,-1446.62636525,0.00021808,2]
[404590175,1770317445215,-5094.42209041,0.00021887,2]
[404590177,1770317445225,-828.22024441,0.00021887,2]
[404590180,1770317445234,-1613.0,0.0002189,2]
[404590182,1770317445244,-1446.62636525,0.0002189,2]
[404590184,1770317445254,-2005.70336892,0.00021917,2]
[404590187,1770317445263,-5000.0,0.00021918,2]
[404590189,1770317445273,-800.0,0.00021918,4]
[404590191,1770317445282,-800.0,0.00021918,4]
[404590193,1770317445291,-800.0,0.00021918,4]
[404590194,1770317445300,-800.0,0.00021918,4]
[404590196,1770317445310,-800.0,0.00021918,4]
[404590199,1770317445319,-800.0,0.00021918,4]
[404590202,1770317445331,-800.0,0.00021918,4]
[404590204,1770317445340,-800.0,0.00021918,4]
[404590206,1770317445349,-800.0,0.00021918,4]
[404590208,1770317445358,-800.0,0.00021918,4]
[404590210,1770317445368,-800.0,0.00021918,4]
[404590212,1770317445378,-800.0,0.00021918,4]
[404590214,1770317445387,-800.0,0.00021918,4]
[404590216,1770317445396,-800.0,0.00021918,4]
[404590218,1770317445406,-1000.0,0.00021918,2]
[404590220,1770317445415,-500.0,0.00021918,2]
[404590222,1770317445424,-500.0,0.00021918,2]
[404590224,1770317445434,-500.0,0.00021918,2]
[404590226,1770317445444,-500.0,0.00021918,2]
[404590228,1770317445453,-500.0,0.00021918,2]
[404590230,1770317445462,-500.0,0.00021918,2]
[404590232,1770317445472,-500.0,0.00021918,2]
[404590234,1770317445484,-500.0,0.00021918,2]
[404590236,1770317445493,-500.0,0.00021918,2]
[404590238,1770317445503,-500.0,0.00021918,2]
[404590240,1770317445511,-500.0,0.00021918,2]
[404590242,1770317445521,-500.0,0.00021918,2]
[404590244,1770317445530,-500.0,0.00021918,2]
[404590246,1770317445539,-500.0,0.00021918,2]
[404590248,1770317445548,-500.0,0.00021918,2]
[404590250,1770317445558,-500.0,0.00021918,2]
[404590252,1770317445568,-500.0,0.00021918,2]
[404590254,1770317445592,-500.0,0.00021918,2]
[404590256,1770317445613,-500.0,0.00021918,2]
[404590258,1770317445634,-500.0,0.00021918,2]
[404590260,1770317445675,-500.0,0.00021918,2]
[404590261,1770317445694,-500.0,0.00021918,2]
[404590262,1770317445715,-500.0,0.00021918,2]
[404590263,1770317445736,-500.0,0.00021918,2]
[404590264,1770317445757,-500.0,0.00021918,2]
[404590265,1770317445779,-500.0,0.00021918,2]
[404590266,1770317445800,-500.0,0.00021918,2]
[404590267,1770317445821,-500.0,0.00021918,2]
[404590268,1770317445851,-500.0,0.00021918,2]
[404590272,1770317445874,-500.0,0.00021918,2]
[404590276,1770317445895,-500.0,0.00021918,2]
[404590280,1770317445919,-500.0,0.00021918,2]
[404590283,1770317445941,-500.0,0.00021918,2]
[404590286,1770317445954,-500.0,0.00021918,2]
[404590290,1770317445964,-500.0,0.00021918,2]
[404590294,1770317445974,-500.0,0.00021918,2]
[404590298,1770317445984,-500.0,0.00021918,2]
[404590301,1770317445994,-500.0,0.00021918,2]
[404590304,1770317446004,-183.95991461,0.00021918,2]
[404590307,1770317446014,-500.0,0.00021918,2]
[404590309,1770317446024,-500.0,0.00021918,2]
[404590312,1770317446034,-500.0,0.00021918,2]
[404590315,1770317446044,-500.0,0.00021918,2]
[404590318,1770317446053,-500.0,0.00021918,2]
[404590320,1770317446063,-500.0,0.00021918,2]
[404590323,1770317446073,-500.0,0.00021918,2]
[404590326,1770317446087,-500.0,0.00021918,2]
[404590328,1770317446097,-500.0,0.00021918,2]
[404590330,1770317446107,-500.0,0.00021918,2]
[404590332,1770317446116,-500.0,0.00021918,2]
[404590334,1770317446125,-150.0,0.00021918,2]
[404590336,1770317446134,-500.0,0.00021918,2]
[404590338,1770317446143,-500.0,0.00021918,2]
[404590339,1770317446152,-500.0,0.00021918,2]
[404590340,1770317446162,-500.0,0.00021918,2]
[404590341,1770317446172,-500.0,0.00021918,2]
[404590342,1770317446181,-500.0,0.00021918,2]
[404590343,1770317446191,-500.0,0.00021918,2]
[404590344,1770317446201,-500.0,0.00021918,2]
[404590345,1770317446211,-500.0,0.00021918,2]
[404590346,1770317446220,-204.46,0.00021964,2]
[404590347,1770317446230,-1446.62636525,0.00021973,30]
[404590348,1770317446240,-500.0,0.00021973,2]
[404590350,1770317446250,-2136.41,0.00022,7]
[404590352,1770317446260,-156688.5,0.00022,2]
[404590354,1770317446270,-370.55267235,0.00022028,2]
[404590356,1770317446279,-1446.62636525,0.00022055,30]
[404590358,1770317446289,-350.0,0.00022068,2]
[404590360,1770317446298,-152.01739561,0.00022078,2]
[404590362,1770317446309,-1446.62636525,0.00022137,30]
[404590364,1770317446318,-550.0,0.00022164,2]
[404590366,1770317446333,-1999.0,0.00022192,2]
[404590368,1770317446343,-373.07297731,0.00022217,2]
[404590370,1770317446352,-621.78829552,0.00022219,2]
[404590372,1770317446362,-1446.62636525,0.00022219,30]
[404590374,1770317446372,-2000.0,0.00022221,2]
[404590376,1770317446388,-251.11897888,0.00022221,2]
[404590378,1770317446398,-200.0,0.00022278,2]
[404590380,1770317446407,-155.22993896,0.00022296,7]
[404590382,1770317446416,-181.7,0.00022315,2]
[404590384,1770317446426,-2693.76418737,0.00022356,2]
[404590386,1770317446436,-466.0,0.00022369,2]
[404590388,1770317446446,-993.0,0.000224,2]
[404590390,1770317446455,-782.0,0.000224,2]
[404590392,1770317446464,-316.0,0.00022427,2]
[404590394,1770317446474,-466.0,0.00022491,2]
[404590396,1770317446483,-208.0,0.000225,2]
[404590397,1770317446492,-150.0,0.000225,2]
[404590399,1770317446502,-187.88,0.000225,7]
[404590402,1770317446512,-506.0,0.00022502,6]
[404590403,1770317446522,-466.0,0.00022524,2]
[404590405,1770317446531,-466.0,0.00022539,2]
[404590407,1770317446542,-11347.9899147,0.00022551,2]
[404590409,1770317446553,-466.0,0.00022554,2]
[404590411,1770317446562,-466.0,0.00022567,2]
[404590413,1770317446572,-151.0,0.00022597,7]
[404590415,1770317446589,-128848.76685186,0.000226,2]
[404590417,1770317446601,-3610.48438515,0.000226,2]
[404590419,1770317446613,-255.87838959,0.000226,2]
[404590421,1770317446623,-1503.0,0.000226,2]
[404590423,1770317446633,-1503.0,0.000226,2]
[404590425,1770317446643,-1503.0,0.000226,2]
[404590427,1770317446653,-159.15241189,0.000226,2]
[404590442,1770317446794,-159.0,0.000226,2]
[404590444,1770317446806,-1503.0,0.000226,2]
[404590446,1770317446816,-153.0,0.000226,2]
[404590448,1770317446825,-151.0,0.000226,2]
[404590450,1770317446839,-159.89228707,0.000226,2]
[404590452,1770317446848,-1503.0,0.000226,2]
[404590454,1770317446858,-151.0,0.000226,2]
[404590456,1770317446867,-153.0,0.000226,2]
[404590458,1770317446877,-153.0,0.000226,2]
[404590459,1770317446886,-151.0,0.000226,2]
[404590460,1770317446895,-151.0,0.000226,2]
[404590462,1770317446905,-1503.0,0.000226,2]
[404590463,1770317446914,-151.0,0.000226,2]
[404590464,1770317446923,-1503.0,0.000226,2]
[404590465,1770317446932,-153.0,0.000226,2]
[404590466,1770317446942,-151.0,0.000226,2]
[404590467,1770317446951,-1503.0,0.000226,2]
[404590469,1770317446960,-153.0,0.000226,2]
[404590471,1770317446969,-151.0,0.000226,2]
[404590473,1770317446979,-1503.0,0.000226,2]
[404590475,1770317446989,-153.0,0.000226,2]
[404590476,1770317446998,-151.0,0.000226,2]
[404590477,1770317447007,-1503.0,0.000226,2]
[404590478,1770317447017,-153.0,0.000226,2]
[404590479,1770317447026,-151.0,0.000226,2]
[404590480,1770317447035,-153.0,0.000226,2]
[404590481,1770317447045,-1503.0,0.000226,2]
[404590482,1770317447055,-151.0,0.000226,2]
[404590483,1770317447064,-153.0,0.000226,2]
[404590484,1770317447074,-1503.0,0.000226,2]
[404590485,1770317447088,-151.0,0.000226,2]
[404590486,1770317447098,-153.0,0.000226,2]
[404590487,1770317447108,-1503.0,0.000226,2]
[404590488,1770317447117,-151.0,0.000226,2]
[404590489,1770317447127,-1503.0,0.000226,2]
[404590490,1770317447136,-153.0,0.000226,2]
[404590491,1770317447146,-1503.0,0.000226,2]
[404590492,1770317447159,-153.0,0.000226,2]
[404590494,1770317447183,-151.0,0.000226,2]
[404590496,1770317447206,-1503.0,0.000226,2]
[404590498,1770317447228,-153.0,0.000226,2]
[404590500,1770317447251,-151.0,0.000226,2]
[404590502,1770317447271,-1503.0,0.000226,2]
[404590504,1770317447293,-153.0,0.000226,2]
[404590506,1770317447315,-151.0,0.000226,2]
[404590508,1770317447343,-1503.0,0.000226,2]
[404590509,1770317447364,-153.0,0.000226,2]
[404590510,1770317447386,-151.0,0.000226,2]
[404590511,1770317447409,-153.0,0.000226,2]
[404590512,1770317447431,-1503.0,0.000226,2]
[404590513,1770317447455,-151.0,0.000226,2]
[404590514,1770317447476,-153.0,0.000226,2]
[404590515,1770317447486,-1503.0,0.000226,2]
[404590516,1770317447495,-151.0,0.000226,2]
[404590517,1770317447505,-153.0,0.000226,2]
[404590518,1770317447514,-1503.0,0.000226,2]
[404590519,1770317447523,-151.0,0.000226,2]
[404590520,1770317447533,-1503.0,0.000226,2]
[404590521,1770317447542,-153.0,0.000226,2]
[404590522,1770317447552,-244.32691947,0.000226,2]
[404590523,1770317447561,-151.0,0.000226,2]
[404590524,1770317447571,-1503.0,0.000226,2]
[404590525,1770317447584,-151.0,0.000226,2]
[404590526,1770317447594,-1503.0,0.000226,2]
[404590527,1770317447607,-1503.0,0.000226,2]
[404590528,1770317447618,-151.0,0.000226,2]
[404590529,1770317447628,-1503.0,0.000226,2]
[404590530,1770317447638,-151.0,0.000226,2]
[404590531,1770317447649,-1503.0,0.000226,2]
[404590532,1770317447659,-151.0,0.000226,2]
[404590533,1770317447668,-1503.0,0.000226,2]
[404590534,1770317447679,-151.0,0.000226,2]
[404590535,1770317447689,-1503.0,0.000226,2]
[404590536,1770317447698,-151.0,0.000226,2]
[404590537,1770317447708,-1503.0,0.000226,2]
[404590538,1770317447717,-151.0,0.000226,2]
[404590539,1770317447727,-1503.0,0.000226,2]
[404590540,1770317447736,-151.0,0.000226,2]
[404590541,1770317447746,-1503.0,0.000226,2]
[404590542,1770317447757,-151.0,0.000226,2]
[404590543,1770317447767,-1503.0,0.000226,2]
[404590544,1770317447777,-1503.0,0.000226,2]
[404590545,1770317447787,-151.0,0.000226,2]
[404590546,1770317447797,-1503.0,0.000226,2]
[404590547,1770317447807,-151.0,0.000226,2]
[404590548,1770317447817,-1503.0,0.000226,2]
[404590549,1770317447826,-151.0,0.000226,2]
[404590550,1770317447840,-1503.0,0.000226,2]
[404590551,1770317447850,-1503.0,0.000226,2]
[404590552,1770317447860,-151.0,0.000226,2]
[404590553,1770317447870,-1503.0,0.000226,2]
[404590554,1770317447879,-151.3136,0.000226,2]
[404590555,1770317447889,-1503.0,0.000226,2]
[404590556,1770317447902,-1503.0,0.000226,2]
[404590557,1770317447923,-1503.0,0.000226,2]
[404590558,1770317447938,-1503.0,0.000226,2]
[404590559,1770317447957,-1503.0,0.000226,2]
[404590560,1770317447975,-1503.0,0.000226,2]
[404590561,1770317447991,-167.70093456,0.000226,2]
[404590562,1770317448007,-1000.0,0.000226,2]
[404590563,1770317448025,-1000.0,0.000226,2]
[404590564,1770317448045,-1000.0,0.000226,2]
[404590565,1770317448061,-1000.0,0.000226,2]
[404590566,1770317448083,-1000.0,0.000226,2]
[404590567,1770317448100,-1000.0,0.000226,2]
[404590568,1770317448120,-1000.0,0.000226,2]
[404590569,1770317448136,-1000.0,0.000226,2]
[404590570,1770317448150,-1000.0,0.000226,2]
[404590571,1770317448168,-1000.0,0.000226,2]
[404590572,1770317448180,-1000.0,0.000226,2]
[404590573,1770317448195,-1000.0,0.000226,2]
[404590574,1770317448212,-1000.0,0.000226,2]
[404590576,1770317448226,-1000.0,0.000226,2]
[404590577,1770317448240,-1000.0,0.000226,2]
[404590581,1770317448255,-1000.0,0.000226,2]
[404590584,1770317448275,-1000.0,0.000226,2]
[404590587,1770317448292,-1000.0,0.000226,2]
[404590588,1770317448307,-1000.0,0.000226,2]
[404590589,1770317448323,-1000.0,0.000226,2]
[404590590,1770317448341,-1000.0,0.000226,2]
[404590591,1770317448357,-1000.0,0.000226,2]
[404590592,1770317448372,-1000.0,0.000226,2]
[404590593,1770317448390,-1146.13843053,0.000226,2]
[404590594,1770317448406,-300.0,0.000226,2]
[404590595,1770317448422,-151.0,0.000226,2]
[404590596,1770317448437,-151.0,0.000226,2]
[404590597,1770317448450,-1503.0,0.000226,2]
[404590598,1770317448466,-153.0,0.000226,2]
[404590599,1770317448481,-707.45982,0.000226,2]
[404590600,1770317448495,-450.0,0.00022616,2]
[404590601,1770317448510,-200.0,0.00022635,2]
[404590602,1770317448526,-197.0,0.00022657,120]
[404590603,1770317448543,-524.01682241,0.0002271,2]
[404590604,1770317448559,-650.0,0.00022712,2]
[404590605,1770317448574,-2000.0,0.00022769,2]
[404590606,1770317448596,-260.4103811,0.00022769,2]
[404590608,1770317448613,-707.45982,0.000228,2]
[404590610,1770317448633,-5094.42209041,0.000229,2]
[404590612,1770317448652,-828.22024441,0.000229,2]
[404590613,1770317448668,-151.0,0.000229,2]
[404590614,1770317448685,-151.0,0.000229,2]
[404590615,1770317448700,-151.0,0.000229,2]
[404590616,1770317448715,-151.0,0.000229,2]
[404590617,1770317448731,-151.0,0.000229,2]
[404590618,1770317448746,-151.0,0.000229,2]
[404590619,1770317448761,-1514.793586,0.000229,2]
[404590620,1770317448776,-1514.793586,0.000229,2]
[404590621,1770317448793,-1514.793586,0.000229,2]
[404590622,1770317448807,-1514.793586,0.000229,2]
[404590623,1770317448823,-200.0,0.00022996,2]
[404590624,1770317448843,-240144.95070026,0.00023,2]
[404590625,1770317448858,-1009.45724278,0.00023,2]
[404590626,1770317448873,-63471.71704067,0.00023,2]
[404590627,1770317448888,-160.0,0.00023,2]
[404590628,1770317448903,-151.0,0.00023,2]
[404590629,1770317448918,-707.45982,0.00023,2]
[404590630,1770317448933,-450.0,0.00023,2]
[404590631,1770317448949,-156688.5,0.00023,2]
[404590632,1770317448964,-151.0,0.00023,2]
[404590633,1770317448990,-308.806092,0.00023,2]
[404590634,1770317449014,-308.806092,0.00023,2]
[404590635,1770317449034,-308.806092,0.00023,2]
[404590636,1770317449053,-308.806092,0.00023,2]
[404590637,1770317449071,-151.0,0.00023,2]
[404590638,1770317449090,-151.0,0.00023,2]
[404590639,1770317449106,-151.0,0.00023,2]
[404590640,1770317449123,-155.22993896,0.00023045,7]
[404590641,1770317449139,-151.0,0.000231,2]
[404590642,1770317449154,-151.0,0.000231,2]
[404590643,1770317449170,-151.0,0.000231,2]
[404590644,1770317449184,-151.0,0.000231,2]
[404590645,1770317449200,-151.0,0.000231,2]
[404590646,1770317449214,-151.0,0.000231,2]
[404590647,1770317449230,-447.66,0.00023105,6]
[404590648,1770317449246,-550.0,0.00023164,2]
[404590649,1770317449266,-494.08897367,0.000232,2]
[404590650,1770317449276,-707.45982,0.000232,2]
[404590651,1770317449286,-750.0,0.0002326,2]
[404590652,1770317449295,-2136.41,0.000233,7]
[404590653,1770317449305,-2000.0,0.00023317,2]
[404590654,1770317449315,-270.0455652,0.00023317,2]
[404590655,1770317449324,-2000.0,0.000234,2]
[404590656,1770317449335,-707.45982,0.000234,2]
[404590657,1770317449345,-506.0,0.00023401,7]
[404590658,1770317449355,-4302.11,0.00023436,2]
[404590659,1770317449671,-200.0,0.00023474,2]
[404590660,1770317449706,-200.0,0.000235,2]
[404590661,1770317449718,-200.0,0.00023558,2]
[404590662,1770317449727,-386.87667747,0.00023586,2]
[404590663,1770317449737,-707.45982,0.000236,2]
[404590664,1770317449747,-650.0,0.00023712,2]
[404590665,1770317449757,-150.0,0.00023748,2]
[404590666,1770317449766,-150.0,0.00023748,2]
[404590667,1770317449780,-150.0,0.00023748,2]
[404590668,1770317449790,-150.0,0.00023748,2]
[404590669,1770317449800,-150.0,0.00023748,2]
[404590670,1770317449810,-150.0,0.00023748,2]
[404590671,1770317449820,-197.0,0.0002379,120]
[404590672,1770317449835,-155.22993896,0.00023793,7]
[404590673,1770317449845,-225.449,0.000238,2]
[404590674,1770317449855,-546.8355192,0.00023808,2]
[404590675,1770317449866,-2000.0,0.00023865,2]
[404590676,1770317449876,-280.03725112,0.00023865,2]
[404590677,1770317449886,-200.0,0.00023977,2]
[404590678,1770317449896,-2258.0,0.00023985,2]
[404590679,1770317449906,-1022.99236037,0.00024,2]
[404590680,1770317449916,-3600.0,0.00024,2]
[404590681,1770317449926,-1237.16172992,0.00024,2]
[404590682,1770317449936,-200.0,0.00024,5]
[404590683,1770317449946,-500.0,0.00024,10]
[404590684,1770317449955,-500.0,0.00024,2]
[404590685,1770317449965,-188.275995,0.00024,2]
[404590686,1770317449974,-151.0,0.00024,2]
[404590687,1770317449983,-500.0,0.00024042,2]
[404590688,1770317449993,-152.01739562,0.00024086,2]
[404590689,1770317450003,-156688.5,0.000241,2]
[404590690,1770317450013,-1411.0,0.00024175,2]
[404590691,1770317450023,-3482.0,0.00024175,2]
[404590692,1770317450032,-1335.0,0.00024175,2]
[404590693,1770317450042,-616.0,0.00024175,2]
[404590694,1770317450051,-1271.0,0.00024175,2]
[404590695,1770317450061,-412.0,0.00024175,2]
[404590696,1770317450071,-6581.0,0.00024175,2]
[404590697,1770317450087,-3254.0,0.00024175,2]
[404590698,1770317450097,-422.67569758,0.0002421,2]
[404590699,1770317450107,-3702.57910111,0.0002421,2]
[404590700,1770317450116,-200.0,0.00024244,2]
[404590701,1770317450126,-750.0,0.0002426,2]
[404590702,1770317450135,-506.0,0.00024299,7]
[404590703,1770317450145,-2000.0,0.00024413,2]
[404590704,1770317450154,-290.39862941,0.00024413,2]
[404590705,1770317450164,-155.22993896,0.00024542,7]
[404590706,1770317450174,-167.86772576,0.0002465,2]
[404590707,1770317450183,-1000.0,0.00024658,2]
[404590708,1770317450193,-1533.09,0.00024658,2]
[404590709,1770317450203,-151.0,0.00024658,2]
[404590710,1770317450212,-151.0,0.00024658,2]
[404590711,1770317450222,-151.0,0.00024658,2]
[404590712,1770317450231,-151.0,0.00024658,2]
[404590713,1770317450240,-151.0,0.00024658,2]
[404590714,1770317450249,-151.0,0.00024658,2]
[404590715,1770317450259,-151.0,0.00024658,2]
[404590716,1770317450268,-151.0,0.00024658,2]
[404590717,1770317450278,-151.0,0.00024658,2]
[404590718,1770317450287,-151.0,0.00024658,2]
[404590719,1770317450296,-150.0,0.00024658,2]
[404590720,1770317450306,-7874.30407594,0.000248,2]
[404590721,1770317450316,-2136.41,0.000248,7]
[404590722,1770317450326,-33919.1832455,0.000248,2]
[404590723,1770317450342,-182.17756489,0.00024808,2]
[404590724,1770317450351,-2000.0,0.00024875,2]
[404590725,1770317450360,-2000.0,0.00024875,2]
[404590726,1770317450371,-151.0,0.00024897,7]
[404590727,1770317450381,-503.94067654,0.00024899,2]
[404590728,1770317450391,-151.0,0.000249,7]
[404590729,1770317450401,-151.0,0.000249,7]
[404590730,1770317450411,-151.0,0.000249,7]
[404590731,1770317450420,-151.0,0.000249,7]
[404590732,1770317450430,-151.0,0.000249,7]
[404590733,1770317450439,-151.0,0.000249,7]
[404590734,1770317450449,-157.766732,0.000249,7]
[404590735,1770317450459,-151.0,0.000249,7]
[404590736,1770317450469,-151.0,0.000249,7]
[404590737,1770317450479,-151.0,0.000249,7]
[404590738,1770317450489,-151.0,0.000249,7]
[404590739,1770317450498,-151.0,0.000249,7]
[404590740,1770317450507,-210.290538,0.000249,7]
[404590741,1770317450517,-151.0,0.000249,7]